Cogmind - Beta 15 @@@ ROGUE MODE // 2025.05.13 @ 22:46:31 Player: Kazimir57 Result: Self-destructed Performance ------------- Evolutions (1) 500 Regions Visited (3) 600 Robots Destroyed (17) 85 Value Destroyed (340) 340 Prototype IDs (0) 0 Alien Tech Used (0) 0 Bonus (200) 200 TOTAL SCORE: 1725 Bonus ------- Pacifist 200 Cogmind --------- Core Integrity 282/400 Matter 0/300 Energy 250/250 System Corruption 1% Temperature Cool (0) Movement Treading (160) Location -9/Storage Parts ------- > --- POWER (1) -------- Ion Engine > --- PROPULSION (3) --- Light Treads Surge Thruster > --- UTILITY (3) ------ Heat Sink Structural Scanner Signal Interpreter > --- WEAPON (2) ------- Mini Grenade Launcher > --- INVENTORY (5) ---- Light Ion Engine Light Ion Engine Aluminum Leg Aluminum Leg Medium Storage Unit Peak State ------------ > --- POWER ------------ Light Ion Engine > --- PROPULSION ------- Surge Thruster Surge Thruster Surge Thruster > --- UTILITY ---------- Heat Sink Structural Scanner Signal Interpreter > --- WEAPON ----------- Light Assault Rifle Grenade Launcher > --- INVENTORY -------- Light Ion Engine Aluminum Leg Aluminum Leg Medium Storage Unit [Rating: 15] Favorites ----------- Power Light Ion Engine Engine Light Ion Engine Propulsion Light Treads Treads Light Treads Leg Aluminum Leg Wheel Compact Wheel Flight Unit Surge Thruster Utility Small Storage Unit Device Heat Sink Storage Small Storage Unit Processor Signal Interpreter Weapon Light Assault Rifle Energy Gun Small Laser Ballistic Gun Light Assault Rifle Launcher Grenade Launcher Build | -11 -10 -9 -9 ------- Run | Yrd Mat Mat Sto Slots Evolved 2 | . . 2 . Power . | . . . . Propulsion 1 | . . 1 . Utility 1 | . . 1 . Weapon . | . . . . Parts Attached 22 | 8 3 8 3 Power 4 | 1 . 2 1 Engine 4 | 1 . 2 1 Core . | . . . . Reactor . | . . . . Propulsion 9 | 4 . 4 1 Treads 3 | 2 . . 1 Leg 1 | 1 . . . Wheel 1 | 1 . . . Hover . | . . . . Flight 4 | . . 4 . Utility 5 | 1 2 2 . Device 2 | . 2 . . Storage 2 | 1 . 1 . Processor 1 | . . 1 . Hackware . | . . . . Protection . | . . . . Artifact . | . . . . Weapon 4 | 2 1 . 1 Energy Gun 1 | 1 . . . Energy Cannon . | . . . . Ballistic Gun 1 | 1 . . . Ballistic Cannon . | . . . . Launcher 2 | . 1 . 1 Special Weapon . | . . . . Impact Weapon . | . . . . Slashing Weapon . | . . . . Piercing Weapon . | . . . . Special Melee Weapon . | . . . . Unidentified Prototypes . | . . . . Parts Lost 5 | . . 1 4 Power 1 | . . 1 . Propulsion 2 | . . . 2 Utility . | . . . . Weapon 2 | . . . 2 Highest Loss Streak 4 | . . 1 4 To Critical Strikes . | . . . . Average Backups 4 | 4 4 4 4 Power 1 | . 1 1 1 Propulsion 2 | 2 2 2 2 Utility . | . . 1 1 Weapon . | . . . . Tool/Special . | . . . . Unused Backups 6 | . 3 1 2 Power 1 | . . . 1 Propulsion 2 | . 1 . 1 Utility 1 | . 1 . . Weapon 2 | . 1 1 . Tool/Special . | . . . . Average Slot Usage (%) 91 | . 94 92 81 Engine 11 | . 14 10 11 Treads 17 | . 28 12 5 Flight 9 | . . 14 18 Device 19 | . 16 22 22 Storage 2 | . 6 . . Processor 6 | . . 10 11 Energy Gun 2 | . 5 . . Ballistic Gun 10 | . 14 11 3 Launcher 9 | . 8 11 10 Peak Build Rating 15 | 6 7 15 15 Average Rating 7 | 5 6 11 10 On Entrance 7 | . 6 7 15 Naked Turns . | . . . . Heaviest Build 13 | 10 13 9 9 Greatest Support 40 | 40 40 40 20 Greatest Overweight (x) 2 | 1 . 2 1 Average Overweight (x) . | . . . . Largest Inventory Capacity 10 | 8 8 10 5 Average Capacity 7 | 7 6 5 5 Most Carried 6 | 6 5 5 5 Average Carried 4 | 4 4 4 4 Final Capacity 8 | 8 5 5 5 Final Carried 5 | 5 5 5 5 Class Distribution -------------------- 91% | Mutant 8% | Sprinter Dominant Class ---------------- Mutant | -10/Materials Mutant | -9/Materials Mutant | -9/Storage Resources | -11 -10 -9 -9 ----------- Run | Yrd Mat Mat Sto Matter Collected 359 | 173 . 126 60 Remotely . | . . . . Salvage Created 334 | . . 212 122 Parts 33 | . . 19 14 Haulers Intercepted 1 | . . . 1 Recyclers Shooed 2 | . . 2 . Parts Field Recycled . | . . . . Retrieved Matter . | . . . . Parts Self-Destructed . | . . . . Prevented . | . . . . Kills | -11 -10 -9 -9 ------- Run | Yrd Mat Mat Sto Combat Hostiles Destroyed 9 | . . 6 3 Guns 2 | . . 2 . AOE 7 | . . 4 3 Classes Destroyed 8 | . . 7 1 Worker 2 | . . 1 1 Builder 3 | . . 2 1 Hauler 1 | . . . 1 Watcher 2 | . . 1 1 Swarmer 3 | . . 3 . Grunt 3 | . . 1 2 Duelist 1 | . . 1 . Sentry 2 | . . 1 1 Best Kill Streak 9 | . . 9 8 Combat Bots Only 5 | . . 5 3 Max Kills in Single Turn 5 | . . 5 2 Gunslinging . | . . . . Exploded 3 | . . 3 1 Melee . | . . . . Uniques/NPCs Destroyed . | . . . . Combat | -11 -10 -9 -9 -------- Run | Yrd Mat Mat Sto Hostile Shots Fired 48 | . 2 22 24 Missed 13 | . . 6 7 Hits 35 | . 2 16 17 Melee 3 | . . 3 . Projectile 32 | . 2 13 17 Critical Strikes 4 | . . 3 1 Damage Taken 612 | . 32 238 342 Core 118 | . . 15 103 Absorbed by Shields . | . . . . Core Remaining (%) 100 | 100 100 . . Volleys Fired 31 | . 2 14 15 Largest 2 | . 2 2 2 Hottest 60 | . 60 50 50 Shots Fired 43 | . 4 22 17 Gun 24 | . 4 13 7 Cannon . | . . . . Launcher 19 | . . 9 10 Special . | . . . . Kinetic 22 | . 2 13 7 Thermal 2 | . 2 . . Explosive 19 | . . 9 10 Electromagnetic . | . . . . Robot Hit Streak 9 | . 4 9 3 Robot Miss Streak 2 | . . 1 2 Penetration Max . | . . . . Secondary Targets . | . . . . Shots Hit Robots 19 | . 4 10 5 Core Hits 33 | . 1 20 12 Critical Kills . | . . . . Critical Parts Destroyed . | . . . . Critical Strikes . | . . . . Melee Attacks . | . . . . Impact . | . . . . Slashing . | . . . . Piercing . | . . . . Sneak Attacks . | . . . . Combat Hostiles . | . . . . Follow-up Attacks . | . . . . Damage Inflicted 1087 | . 35 560 492 Guns 147 | . 35 72 40 Cannons . | . . . . Explosions 939 | . . 488 451 Melee . | . . . . Ramming 1 | . . . 1 Kinetic 124 | . 12 72 40 Thermal 23 | . 23 . . Explosive 939 | . . 488 451 Electromagnetic . | . . . . Impact . | . . . . Slashing . | . . . . Piercing . | . . . . Highest Corruption 1 | . . 1 1 Average Corruption 1 | . . 1 1 Corruption Purged . | . . . . Corruption Blocked . | . . . . Effects 1 | . . . 1 Matter Fused 1 | . . . 1 Overload Shots . | . . . . Overflow Damage 19 | . . 4 15 Projectiles . | . . . . Explosions 19 | . . 4 15 Melee . | . . . . Knockbacks . | . . . . Impact . | . . . . Kinetic . | . . . . Secondary . | . . . . Self-Inflicted Damage 116 | . . . 116 Shots 5 | . . . 5 Rammed 1 | . . . 1 Targets Rammed 1 | . . . 1 Kicked . | . . . . Crushed . | . . . . Highest Temperature 22 | . 20 22 1 Average Temperature 12 | . 15 15 1 Received Heat Transfer 180 | . 18 63 99 Siege Activations . | . . . . Martial Activations . | . . . . Shielding Activations . | . . . . Robots Disrupted . | . . . . Combat Hostiles . | . . . . Robots Corrupted . | . . . . Combat Hostiles . | . . . . Parts Fried . | . . . . Impact Corruptions . | . . . . Robots Melted . | . . . . Combat Hostiles . | . . . . Parts Melted . | . . . . Heat Transferred 50 | . 50 . . Parts Sabotaged . | . . . . Parts Stolen . | . . . . Parts Stripped . | . . . . Power Chain Reactions . | . . . . Alert | -11 -10 -9 -9 ------- Run | Yrd Mat Mat Sto Maximum Alert Level . | . . . . Low Security (%) 100 | 100 100 100 100 Level 1 . | . . . . Level 2 . | . . . . Level 3 . | . . . . Level 4 . | . . . . Level 5 . | . . . . High Security . | . . . . Max Security . | . . . . Peak Influence 184 | . 5 184 163 Initial 73 | . . . 73 Average 17 | . . 56 131 Influence Increases 416 | . 5 244 167 Destroy 0b10 Robot/C 180 | . . 120 60 Destroy 0b10 Robot/NC 40 | . . 20 20 Destroy Leader 46 | . . 22 24 Successful Hack 12 | . 5 . 7 Disable Machine 30 | . . 15 15 Destroy Structure 93 | . . 52 41 Lose Combat Pursuer 15 | . . 15 . Influence Decreases 266 | . 5 70 191 Entered New Map 101 | . . . 101 Time Decay 115 | . 5 60 50 Lost Part 50 | . . 10 40 Squads Dispatched 3 | . . . 3 Investigation 2 | . . . 2 Extermination . | . . . . Reinforcement . | . . . . Assault . | . . . . Garrison 1 | . . . 1 Intercept . | . . . . Searches Triggered . | . . . . Construction Impeded . | . . . . Haulers Reinforced . | . . . . Active Scanning Responses . | . . . . Cargo Convoy Interrupts . | . . . . Stealth | -11 -10 -9 -9 --------- Run | Yrd Mat Mat Sto Distress Signals 4 | . . 3 1 Communications Jammed . | . . . . Distress Signals . | . . . . Times Spotted 20 | . 3 11 6 Peak Tracking Total 9 | . 2 9 3 Tactical Retreats 1 | . . 1 . Traps | -11 -10 -9 -9 ------- Run | Yrd Mat Mat Sto Traps Triggered 4 | . . 3 1 Indirectly . | . . . . Trap Hack Attempts . | . . . . Triggered . | . . . . Disarmed . | . . . . Reprogrammed . | . . . . Reused . | . . . . Traps Extracted . | . . . . Installed . | . . . . Triggered . | . . . . Machines | -11 -10 -9 -9 ---------- Run | Yrd Mat Mat Sto Machines Disabled 2 | . . 1 1 Max in Single Turn 1 | . . 1 1 Machines Repaired . | . . . . Machines Dismantled . | . . . . Machines Sabotaged . | . . . . Overloaded Fab Kills . | . . . . Hacking | -11 -10 -9 -9 --------- Run | Yrd Mat Mat Sto Machines Accessed 3 | . 1 . 2 Terminals 2 | . 1 . 1 Fabricators . | . . . . Repair Stations . | . . . . Recycling Units . | . . . . Scanalyzers . | . . . . Garrison Access 1 | . . . 1 Total Hacks 5 | . 1 . 4 Successful 2 | . 1 . 1 Failed 3 | . . . 3 Catastrophic 1 | . . . 1 Database Lockouts . | . . . . Manual . | . . . . Terminals 2 | . 1 . 1 Fabricators . | . . . . Repair Stations . | . . . . Recycling Units . | . . . . Scanalyzers . | . . . . Garrison Access 3 | . . . 3 Terminal Hacks 2 | . 1 . 1 Open Door 1 | . . . 1 Zone Layout 1 | . 1 . . Fabricator Hacks . | . . . . Repair Station Hacks . | . . . . Recycling Unit Hacks . | . . . . Scanalyzer . | . . . . Garrison Access Hacks . | . . . . Unauthorized Hacks . | . . . . Terminals . | . . . . Fabricators . | . . . . Repair Stations . | . . . . Recycling Units . | . . . . Scanalyzers . | . . . . Garrison Access . | . . . . Data Cores Recovered . | . . . . Used . | . . . . Hacking Detections 1 | . . . 1 Full Trace Events 1 | . . . 1 Feedback Events . | . . . . Feedback Blocked . | . . . . Robot Schematics Acquired . | . . . . Robots Built . | . . . . Authchips . | . . . . Time . | . . . . Total Robot Build Rating . | . . . . Part Schematics Acquired . | . . . . Parts Built . | . . . . Authchips . | . . . . Time . | . . . . Total Part Build Rating . | . . . . Parts Repaired . | . . . . Time . | . . . . Parts Recycled . | . . . . Recycled Matter . | . . . . Retrieved Matter . | . . . . Retrieved Components . | . . . . Parts Scanalyzed . | . . . . Part Schematics Acquired . | . . . . Parts Damaged . | . . . . Bothacking | -11 -10 -9 -9 ------------ Run | Yrd Mat Mat Sto Used RIF Installer . | . . . . Robots Hacked . | . . . . Non-combat . | . . . . Combat . | . . . . Robot Hacks Applied . | . . . . Relay Couplers Released . | . . . . Fabnet Peak Effective % . | . . . . Robots Rewired . | . . . . Allies Hacked . | . . . . Hacks Repelled . | . . . . Allies | -11 -10 -9 -9 -------- Run | Yrd Mat Mat Sto Total Allies . | . . . . Largest Group . | . . . . Highest-Rated Group . | . . . . Highest-Rated Ally . | . . . . Total Orders . | . . . . Ally Attacks . | . . . . Total Damage . | . . . . Kills . | . . . . Allies Corrupted . | . . . . Allies Melted . | . . . . Intel | -11 -10 -9 -9 ------- Run | Yrd Mat Mat Sto Active Infowar (turns) 526 | . 152 262 112 Structural 526 | . 152 262 112 Robot Analysis Total . | . . . . Derelict Logs Recovered . | . . . . Drone Launches . | . . . . Drone Recoveries . | . . . . Exploration | -11 -10 -9 -9 ------------- Run | Yrd Mat Mat Sto Turns Passed 1677 | 1041 262 262 112 Spaces Moved 689 | 130 154 317 88 Core 5 | 5 . . . Treads 390 | 118 154 86 32 Legs 2 | 2 . . . Wheels 5 | 5 . . . Hover . | . . . . Flight 287 | . . 231 56 Fastest Speed 29 | 50 160 29 29 Average Speed 105 | 154 160 65 86 Slowest Speed 160 | 160 160 160 160 Overloaded Moves . | . . . . Propulsion Burnouts . | . . . . Robots Hopped 2 | . . 2 . Potential Cave-ins . | . . . . Cave-ins Triggered . | . . . . Exploration Rate (%) 30 | 12 37 42 29 Regions Visited 3 Branch Regions 1 Pre-discovered Areas . | . . . . Known Exits Taken 1 | . . 1 . Unknown Exits Taken 2 | 1 1 . . Scrap Searched . | . . . . Spaces Dug . | . . . . Terrain Destroyed 102 | . . 52 50 Melee . | . . . . Projectile . | . . . . AOE 102 | . . 52 50 Terrain Rammed . | . . . . Walls Destroyed . | . . . . Machines Disabled . | . . . . Actions | -11 -10 -9 -9 --------- Run | Yrd Mat Mat Sto Total 1587 | 967 166 347 107 Wait 826 | 824 2 . . Move 682 | 129 153 312 88 Hop 2 | . . 2 . Pick Up 10 | 5 3 2 . Fast Attach 15 | 6 1 7 1 Attach 4 | 1 . 2 1 Detach 2 | 1 . 1 . Swap 8 | 1 2 4 1 Drop 6 | . 3 3 . Fire 31 | . 2 14 15 Melee . | . . . . Ram . | . . . . Kick . | . . . . Crush 1 | . . . 1 Escape Stasis . | . . . . Rewire . | . . . . Trap . | . . . . Miscellaneous . | . . . . Route ------- -11/Scrapyard -10/Materials -9/Materials (discovered 3 exits: *Mat / [*Min] / *Sto) -9/Storage History --------- Turn | Location | Event 2 | -11/Scrapyard | Met Revision 17 18 | -11/Scrapyard | Discovered new exit (range 15) 1042 | -11/Scrapyard | Entered Materials 1043 | -10/Materials | Build established: Mutant 1043 | -10/Materials | Met a group of wandering Federalists 1277 | -10/Materials | Discovered new exit (range 15) 1304 | -10/Materials | Entered another Materials area 1304 | -9/Materials | Evolved 2 slots: Propulsion x1, Utility x1 1489 | -9/Materials | Discovered new exit (range 15) 1497 | -9/Materials | Identified exit to Materials 1505 | -9/Materials | Discovered new exit (range 14) 1548 | -9/Materials | Discovered new exit (range 16) 1565 | -9/Materials | Identified exit to Storage 1566 | -9/Materials | Entered Storage 1580 | -9/Storage | Garrison activated, responded to threat 1626 | -9/Storage | Lost 4 parts (2n2w) 1678 | -9/Storage | Self-destructed Last Messages --------------- 01626_ U-05 Engineer builds a Wall. 01627_ K-01 Serf collects debris. 01627_ R-06 Scavenger collects Sml. Laser. 01628_ K-01 Serf collects debris. 01630_ The unstable cave ceiling collapses. 01630_ R-06 Scavenger collects Welding Torch. 01630_ U-05 Engineer lays Concrete. 01631_ K-01 Serf collects debris. 01650_ U-05 Engineer lays Concrete. 01651_ U-05 Engineer builds a Wall. 01653_ Triggered Alarm Trap. 01653_ An alarm sounds. 01653_ ALERT: Alarm triggered, dispatching investigation squad. 01654_ Slammed into R-06 Scavenger. 01655_ U-05 Engineer lays Concrete. 01666_ System corrupted: Matter fused (-6). 01675_ Connecting with Door Terminal... >>Open(Door) Sealed Heavy Doors opened. Map ----- +----------------------------------------------------+ | ???????????????????????????????? | | ???????????????????????????????? | | ???????????????????????????????? | | ???????????????????????????????? | | ???????????????????????????????? | | ???????????????????????????????? | | ???????????????????????????????? | | ???????????????????????????????? | | ???????????????????????????????? | | ???????????????????????????????? | | ?????????????????? ??????????? | | ????????????????? ??????????? | | ????????????????# ??????????? | | ????????????????## ??????????? | | ???????????????? # ??????????? | | ???????????????? # ??????????? | | ???????????????? # ##????????? | | ???????????????? + ##????????? | | ???????????????? # ##????????? | | ???????????????? # ##????????? | | ???????????????? # ##????????? | | ????? ######## ##########? | | ?????#+########### ##########? | | ????? # [[[[##? | | ????? + ##? | | ????? # @]]]##? | | ??????###+###### ##T#######? | | ?????? # #########?? | | ???????? + ""###?????? | | ???????? ##### Y"##??????? | | ????????? ##### ""##??????? | | ?????????[ ????## ####??????? | | ?????????? ?????## ####??????? | | #### ##### ###???????? | | ###########+######## ###???????? | | ## + # ###??????? | | "" ## """" ### # " #####????? | | "" ## "??" ### # # ##????? | | "" ## "??" ### ###????? | | ## "??" ### """##?????? | | "" # "??" ### G"##?????? | | " ## """" ### """##?????? | | # ### ###????? | | # # = ####### # ###????? | | = ##????? | | = =[ ##????? | | *% ##????? | | ### #=! ###+##########????? | | ##### ## ######????? | | ###### # ??????????? | +----------------------------------------------------+ Best States ------------- Heat Dissipation 38 Energy Generation 10 Energy Capacity 250 Matter Stores 193 Matter Capacity 300 Sight Range 16 Terrain Scan Density 10 Evasion (%) 64 Recoil Reduction 2 Item Schematics ----------------- None Robot Schematics ------------------ None Fabricated ------------ Nothing Repaired ---------- Nothing Alien Tech Used ----------------- None Achievements -------------- None Challenges ------------ None Game ------ Seed WeaponBottomlessBoomstick Manual? 0 Play Time 00:14:35 Cumulative 8.1 hours Start 2025.05.13 @ 22:34:34 End 2025.05.13 @ 22:46:31 Sessions 1 Manual Loads 0 Difficulty Rogue Special Mode None Game No. 17 Rogue 17 Adventurer 0 Explorer 0 Win Type - Total 0 Types 0/0/0/0/0/0/0/0/0/0 Lore% 5 Gallery% 14 Achievement% 13 Wizard Run 0 Options --------- Layout 1 ASCII 0 Keyboard 0 Movement Mouse Keybinds 0 Fullscreen 1 Font 24/Smallcaps Map View 50x35 Zoom Use 0% Tactical HUD 1 Map Filters NONE Filters NONE Steam 1 RUN: 1d848d29-7c84-4bf2-a14f-a3bae9a1b2cc